bitfinex/quotes_ETHUSD_20241203
["timestamp","ask_amount","ask_price","bid_price","bid_amount"]
[1733202275005,0.55,3652.2,3652.1,0.04282495]
[1733202275264,0.55,3652.2,3651.7,0.5499808]
[1733202275588,0.55,3652.2,3651.8,0.04293443]
[1733202276012,0.55,3652.2,3651.7,0.5499808]
[1733202276183,0.55,3652.2,3651.9,0.04289793]
[1733202276392,0.55,3652.2,3651.8,0.04293443]
[1733202276606,0.55,3652.2,3651.7,0.5499808]
[1733202276939,0.55,3652.2,3651.8,0.04293443]
[1733202277088,0.55,3652.2,3651.7,0.5499808]
[1733202277432,0.55,3652.2,3651.9,0.04289793]
[1733202277626,0.55,3652.2,3651.8,0.04293443]
[1733202277804,0.55,3652.2,3651.7,0.5499808]
[1733202277988,0.7956,3652.3,3651.9,0.04289793]
[1733202278487,0.7956,3652.3,3651.7,3.2883608]
[1733202278604,0.7956,3652.3,3652.0,0.04286144]
[1733202278807,0.7956,3652.3,3651.7,3.2883608]
[1733202279021,3.0,3652.7,3652.1,0.0427044]
[1733202279203,1.5382,3652.6,3651.7,3.2883608]
[1733202279397,0.55,3652.5,3652.2,0.04266791]
[1733202279832,0.55,3652.5,3651.8,0.32883608]
[1733202280022,0.55,3652.5,3652.3,0.04263143]
[1733202280233,0.55,3652.5,3651.8,0.32883608]
[1733202280434,0.55,3652.5,3652.4,0.04259494]
[1733202280625,0.55,3652.5,3651.7,0.5499808]
[1733202280801,0.55,3652.5,3651.8,0.32884908]
[1733202281013,0.55,3652.5,3651.8,0.04281388]
[1733202284334,0.45,3652.5,3651.8,0.04281388]
[1733202284942,0.45,3652.5,3651.9,0.768]
[1733202285335,0.45,3652.5,3652.0,0.04264715]
[1733202289742,0.45,3652.5,3652.1,0.04216876]
[1733202289928,0.45,3652.5,3651.7,1.3127808]
[1733202290132,0.45,3652.5,3652.2,0.04213227]
[1733202290359,0.45,3652.5,3651.8,0.40512908]
[1733202290508,0.45,3652.5,3652.3,0.04209578]
[1733202290708,0.45,3652.5,3651.7,1.3127808]
[1733202290918,0.45,3652.5,3652.4,0.0420593]
[1733202291139,0.45,3652.5,3651.7,1.3127808]
[1733202291445,0.45,3652.5,3652.4,0.0420593]
[1733202291629,0.45,3652.5,3651.7,1.3127808]
[1733202291948,0.45,3652.5,3651.8,0.44741532]
[1733202292726,0.45,3652.5,3651.8,0.47479589]
[1733202293243,0.45,3652.5,3651.8,0.44741532]
[1733202293455,0.45,3652.5,3651.8,0.04227824]
[1733202293620,1.5382,3652.6,3651.8,0.04227824]
[1733202293823,1.5382,3652.6,3652.3,0.54597913]
[1733202294223,1.5382,3652.6,3652.4,0.0420593]
[1733202294611,1.5382,3652.6,3652.3,0.54597913]
[1733202295122,1.5382,3652.6,3652.4,0.0420593]
[1733202295326,1.5382,3652.6,3652.3,0.54597913]
[1733202296423,0.55,3652.5,3652.3,0.54597913]
[1733202297589,0.55,3652.5,3652.4,0.04207267]
[1733202300325,0.80525459,3652.5,3652.4,0.04207267]
[1733202301613,1.21332071,3652.5,3652.4,0.04207267]
[1733202302325,0.66332071,3652.5,3652.4,0.18067785]
[1733202302850,0.66332071,3652.5,3652.4,2.91859785]
[1733202303215,0.66332071,3652.5,3652.4,0.18067785]
[1733202303449,1.09085777,3652.5,3652.4,2.91859785]
[1733202303653,1.09086546,3652.5,3652.4,3.74859785]
[1733202305261,0.66332071,3652.5,3652.4,3.74859785]
[1733202306087,0.66332071,3652.5,3652.4,6.74859785]
[1733202306911,0.66705387,3652.5,3652.4,6.74859785]
[1733202307336,0.25655918,3652.5,3652.4,6.74859785]
[1733202307537,0.75,3652.6,3652.5,2.73785]
[1733202307736,0.75,3652.6,3652.5,3.4673007]
[1733202307936,0.75,3652.6,3652.5,3.50838158]
[1733202310675,0.75,3652.6,3652.5,0.77053158]
[1733202310880,0.75,3652.6,3652.5,3.50838158]
[1733202311375,0.75,3652.6,3652.5,4.30888158]
[1733202312386,0.75,3652.6,3652.5,4.58308158]
[1733202312545,0.75,3652.6,3652.5,4.30888158]
[1733202318722,0.73952383,3652.6,3652.5,4.30888158]
[1733202321574,0.73952383,3652.6,3652.5,1.57103158]
[1733202321916,2.06352383,3652.6,3652.5,0.04108088]
[1733202322083,4.80129383,3652.6,3652.5,0.04108088]
[1733202322306,0.55,3652.3,3651.2,0.7873]
[1733202322469,3.28786,3652.5,3651.2,0.7873]
[1733202322470,1.49259969,3652.1,3651.2,0.7873]
[1733202322803,0.94259969,3651.8,3651.3,0.03880038]
[1733202322988,1.3414,3651.7,3650.8,3.09511]
[1733202323301,1.3414,3651.7,3651.4,0.03753606]
[1733202323463,1.3414,3651.7,3650.9,3.126471]
[1733202323669,1.3414,3651.7,3651.5,0.03749956]
[1733202323867,1.3414,3651.7,3651.2,0.56092175]
[1733202324069,1.3414,3651.7,3651.6,0.03746306]
[1733202324314,1.3414,3651.7,3651.2,0.56092175]
[1733202324739,1.3414,3651.7,3651.3,0.03757257]
[1733202325230,1.3414,3651.7,3651.2,0.56092175]
[1733202325328,1.3414,3651.7,3651.4,0.03806256]
[1733202325473,1.3414,3651.7,3651.3,0.03809907]
[1733202325678,1.3414,3651.7,3651.2,0.56092175]
[1733202325679,1.3414,3651.7,3651.5,0.03802606]
[1733202325872,1.3414,3651.7,3651.4,0.03806256]
[1733202326200,1.3414,3651.7,3651.2,0.56092175]
[1733202326201,1.3414,3651.7,3651.6,0.03798956]
[1733202327014,1.3414,3651.7,3651.2,0.56092175]
[1733202327308,1.3414,3651.7,3651.6,0.03798956]
[1733202327474,1.3414,3651.7,3651.2,0.56092175]
[1733202327675,1.3414,3651.7,3651.6,0.03798956]
[1733202327875,1.3414,3651.7,3651.2,0.56092175]
[1733202328085,1.3414,3651.7,3651.6,0.03798956]
[1733202328711,1.3414,3651.7,3651.2,0.56092175]
[1733202328915,1.3414,3651.7,3651.6,0.03798956]
[1733202329213,1.3414,3651.7,3651.6,0.03860975]
[1733202329410,1.3414,3651.7,3651.2,0.56092175]
[1733202329581,1.3414,3651.7,3651.6,0.03858744]
[1733202329780,1.3414,3651.7,3651.2,0.56092175]
[1733202329981,1.3414,3651.7,3651.6,0.03858744]
[1733202330320,1.3414,3651.7,3651.2,0.56092175]
[1733202330525,1.3414,3651.7,3651.6,0.03858744]
[1733202330702,1.3414,3651.7,3651.2,0.56092175]
[1733202330875,1.3414,3651.7,3651.6,0.03858744]
[1733202331076,1.3414,3651.7,3650.9,2.73903]
[1733202331317,1.3414,3651.7,3651.6,0.03858744]
[1733202331513,1.3414,3651.7,3650.9,2.73903]
[1733202331686,1.3414,3651.7,3651.6,0.03858744]
[1733202331888,1.3414,3651.7,3651.1,0.759]
[1733202332279,1.3414,3651.7,3651.2,0.03873345]
[1733202332487,1.3414,3651.7,3651.2,0.09074518]
[1733202332682,1.3414,3651.7,3651.1,2.73889]
[1733202332882,1.3414,3651.7,3651.3,0.09070725]
[1733202333126,1.3414,3651.7,3651.2,0.09074518]
[1733202333413,1.3414,3651.7,3651.1,2.73889]
[1733202333414,1.3414,3651.7,3651.3,0.09070725]
[1733202333605,1.3414,3651.7,3651.1,2.73889]
[1733202333784,1.3414,3651.7,3651.4,0.09066932]
[1733202334019,1.3414,3651.7,3651.1,2.73889]
[1733202334316,0.8246,3652.0,3651.5,2.82922139]
[1733202334528,0.8246,3652.0,3651.1,0.40412736]
[1733202334529,0.8246,3652.0,3651.6,2.73852]
[1733202334739,0.8246,3652.0,3651.6,2.82911347]
[1733202334934,0.8033,3652.3,3651.6,2.82911347]
[1733202335511,0.55,3652.2,3651.6,2.82911347]
[1733202335845,0.55,3652.2,3651.6,3.36551046]
[1733202337596,0.7518,3652.6,3651.7,0.02738234]
[1733202337854,0.7518,3652.6,3651.8,0.7506]
[1733202337996,0.7518,3652.6,3652.1,2.73813]
[1733202339819,0.55,3652.9,3652.5,0.54277563]
[1733202340193,0.55,3652.9,3651.8,0.7506]
[1733202340534,0.55,3652.9,3652.6,0.08987073]
[1733202340837,0.55,3652.9,3651.8,0.7506]
[1733202341011,0.55,3652.9,3652.7,0.08983283]
[1733202341196,3.28755,3652.9,3652.3,0.56113486]
[1733202341397,0.55,3652.7,3651.8,0.7506]
[1733202341630,0.55,3652.7,3652.4,0.08994654]
[1733202341835,0.8221,3652.4,3651.4,3.0]
[1733202342059,0.55,3652.1,3651.1,0.40412736]
[1733202342350,0.55,3651.9,3651.1,0.02738554]
[1733202342516,0.55,3651.9,3651.2,2.73881]
[1733202343015,0.55,3651.9,3651.8,0.55812066]
[1733202350277,0.8279,3652.0,3651.8,0.55812066]
[1733202350278,0.55,3652.0,3651.8,0.55812066]
[1733202350570,0.8175,3652.7,3651.9,0.08715954]
[1733202350979,0.8175,3652.7,3651.9,0.37244738]
[1733202351534,0.8175,3652.7,3652.0,0.0273784]
[1733202351739,0.8175,3652.7,3651.8,2.73836]
[1733202351740,0.55,3652.6,3651.8,2.73836]
[1733202352060,0.55,3652.6,3652.0,0.8106]
[1733202352448,0.55,3652.6,3652.1,0.08712386]
[1733202356684,0.55,3652.6,3652.3,2.73798]
[1733202356885,4.45877124,3653.6,3652.1,0.08712386]
[1733202356886,0.8195,3653.5,3652.4,3.80713039]
[1733202357094,0.8195,3653.5,3652.4,3.89408252]
[1733202358067,0.8195,3653.5,3652.4,1.15616252]
[1733202358262,0.55,3653.4,3652.4,0.87365213]
[1733202358457,0.55,3653.4,3652.4,0.7867]
[1733202358661,0.55,3653.4,3652.5,0.08683392]
[1733202359798,0.55,3653.4,3652.4,0.7867]
[1733202360399,1.96922787,3653.4,3652.4,0.7867]
[1733202360742,1.96915688,3653.4,3652.4,0.7867]
[1733202361199,0.55,3653.4,3652.5,0.352472]
[1733202361380,0.55,3653.4,3652.4,0.7867]
[1733202362669,1.96893195,3653.4,3652.5,0.08683392]
[1733202363362,0.55,3653.4,3652.5,0.08683392]
[1733202364201,0.55,3653.4,3652.4,3.52461]
[1733202364372,0.55,3653.4,3652.6,0.08634538]
[1733202364584,0.55,3653.4,3652.6,0.36109554]
[1733202364790,0.55,3653.4,3652.7,0.08630748]
[1733202364984,0.55,3653.4,3652.6,0.36109554]
[1733202365183,0.55,3653.4,3652.7,0.08630748]
[1733202365383,1.96925564,3653.4,3652.6,0.36109554]
[1733202365587,1.96922772,3653.4,3652.7,0.38857055]
[1733202365913,3.11745733,3653.4,3652.4,0.7867]
[1733202366277,3.11736604,3653.4,3652.5,0.08638329]
[1733202366671,3.11736604,3653.4,3652.4,0.7867]
[1733202366873,0.55,3653.4,3652.4,0.7867]
[1733202367512,1.9689965,3653.4,3652.6,0.8269]
[1733202367714,0.55,3653.4,3652.7,0.36511333]
[1733202367889,0.55,3653.4,3652.7,0.45142081]
[1733202368885,0.55,3653.5,3652.7,0.45142081]
[1733202369415,0.55,3653.5,3652.7,0.36511333]
[1733202369613,0.55,3653.5,3652.8,0.08626958]
[1733202369991,4.14822961,3653.6,3652.8,0.08626958]
[1733202369992,0.42702444,3653.2,3652.9,0.7741]
[1733202370179,0.42702444,3653.3,3653.0,0.08619379]
[1733202370520,0.66609788,3653.2,3653.1,0.7741]
[1733202370880,0.83732274,3653.2,3653.1,0.8600418]
[1733202371279,0.66609788,3653.2,3653.1,3.5974418]
[1733202371591,1.21609788,3653.2,3653.1,1.21978598]
[1733202371807,1.21609788,3653.2,3653.1,0.8600418]
[1733202372005,1.21609788,3653.2,3653.1,1.41248348]
[1733202372207,1.21609788,3653.2,3653.1,4.14988348]
[1733202372702,1.21609788,3653.2,3653.1,1.41248348]
[1733202373012,1.21609788,3653.2,3653.1,4.14988348]
[1733202373243,1.38732274,3653.2,3653.1,4.56487183]
[1733202373517,1.21609788,3653.2,3653.1,4.56487183]
[1733202375005,0.55,3653.5,3653.1,4.56487183]
[1733202375529,0.55,3653.5,3653.2,2.73732]
[1733202376026,0.55,3653.5,3653.3,0.08285669]
[1733202376180,1.3863942,3653.4,3653.3,0.08285669]
[1733202376525,1.21518346,3653.4,3653.3,0.08285669]
[1733202376709,1.3863942,3653.4,3653.3,0.08285669]
[1733202377021,1.21518346,3653.4,3653.3,3.27627736]
[1733202377191,1.3863942,3653.4,3653.3,3.27627736]
[1733202377392,1.21518346,3653.4,3653.3,3.27627736]
[1733202377621,1.3863942,3653.4,3653.3,3.27627736]
[1733202377823,1.21518346,3653.4,3653.3,3.27627736]
[1733202378423,1.21518346,3653.4,3653.3,3.19342067]
[1733202378584,1.21518346,3653.4,3653.3,3.27624175]
[1733202379639,0.66518346,3653.4,3653.3,3.27624175]
[1733202379948,0.25583979,3653.4,3653.3,4.09184175]
[1733202380653,1.95342961,3654.3,3653.8,2.7368]
[1733202380654,0.94247907,3653.9,3653.8,2.7368]
[1733202380813,0.94247907,3653.9,3653.8,2.81939159]
[1733202381555,1.90169829,3653.9,3653.8,2.81939159]
[1733202381711,2.1574603,3653.9,3653.8,0.08259159]
[1733202382114,0.55,3653.8,3653.6,2.737]
[1733202382349,1.21498123,3653.7,3653.6,2.737]
[1733202382647,1.21498123,3653.7,3653.6,3.28467122]
[1733202384623,1.21498123,3653.7,3653.6,3.36733858]
[1733202385328,1.21498123,3653.7,3653.6,3.83124951]
[1733202385743,0.80576201,3653.7,3653.6,3.83124951]
[1733202385909,1.21498123,3653.7,3653.6,3.83124951]
[1733202386113,0.80576201,3653.7,3653.6,3.83124951]
[1733202386334,0.55,3653.8,3653.7,2.73688]
[1733202386726,0.55,3653.8,3653.7,2.81926467]
[1733202387458,1.21445491,3653.8,3653.7,2.81926467]
[1733202391624,1.21445491,3653.8,3653.7,3.20234935]
[1733202391824,0.80555958,3653.8,3653.7,3.99674935]
[1733202392224,0.55,3653.8,3653.7,3.99674935]
[1733202392440,0.94247907,3654.4,3653.8,2.73687]
[1733202392441,0.55,3653.9,3653.8,2.73687]
[1733202392651,0.55,3653.9,3653.8,2.81921679]
[1733202392857,0.55,3653.9,3653.8,3.27365406]
[1733202393356,0.25573137,3653.9,3653.8,3.27365406]
[1733202393521,0.80573137,3653.9,3653.8,3.27365406]
[1733202393916,1.21490156,3653.9,3653.8,3.27365406]
[1733202394158,0.80573137,3653.9,3653.8,3.27365406]
[1733202394463,1.21490156,3653.9,3653.8,3.27365406]
[1733202394670,0.80573137,3653.9,3653.8,3.27365406]
[1733202395730,1.21490156,3653.9,3653.8,3.27365406]
[1733202395930,0.80573137,3653.9,3653.8,3.27365406]
[1733202396864,1.21490156,3653.9,3653.8,3.27365406]
[1733202397067,0.80573137,3653.9,3653.8,0.53678406]
[1733202397231,0.80573137,3653.9,3653.8,0.08234679]
[1733202397429,0.55,3653.8,3653.7,0.7944]
[1733202397642,0.80573137,3653.8,3653.7,3.53135]
[1733202397828,0.80573137,3653.8,3653.7,3.61366344]
[1733202398378,0.55,3653.8,3653.7,3.61366344]
[1733202399273,0.80564131,3653.8,3653.7,4.02979691]
[1733202402674,0.80564131,3653.8,3653.7,0.08231344]
[1733202402831,1.74812038,3653.8,3653.6,0.54767122]
[1733202403172,0.80564131,3653.7,3653.6,3.28469122]
[1733202403353,1.21466741,3653.7,3653.6,3.28469122]
[1733202403757,0.80564131,3653.7,3653.6,3.28469122]
[1733202404067,0.80564131,3653.7,3653.6,3.68894034]
[1733202404272,0.55,3654.0,3653.6,0.95192034]
[1733202404479,0.55,3654.0,3653.6,0.54767122]
[1733202405031,0.55,3654.3,3654.1,2.73662]
[1733202405230,1.41916999,3654.5,3654.2,2.73657]
[1733202405231,1.14822961,3654.5,3654.2,2.73657]
[1733202405430,2.37130106,3654.6,3654.2,2.73657]
[1733202405665,0.66510538,3654.5,3654.2,2.73657]
[1733202405967,0.66510538,3654.4,3654.3,2.73646]
[1733202406268,0.25580976,3654.4,3654.3,2.73646]
[1733202406846,0.66510538,3654.4,3654.3,2.73646]
[1733202407569,0.55,3654.3,3654.1,2.73662]
[1733202407753,0.55,3654.1,3653.6,0.54767122]
[1733202407956,0.55,3653.9,3653.7,2.73692]
[1733202408135,0.25580976,3653.8,3653.7,2.73692]
[1733202408336,0.80580976,3653.8,3653.7,2.73692]
[1733202410946,0.55,3653.7,3653.6,0.68462834]
[1733202411280,0.55,3654.0,3653.6,3.42164834]
[1733202411573,0.55,3653.6,3653.0,0.7614]
[1733202411873,0.55,3653.4,3653.0,0.7614]
[1733202412179,0.55,3653.6,3653.0,0.7614]
[1733202412335,0.25572878,3653.5,3653.0,0.7614]
[1733202412539,0.55,3653.3,3652.7,3.2736]
[1733202412738,0.55,3653.3,3653.0,3.0]
[1733202412975,0.55,3653.5,3652.8,0.7592013]
[1733202413310,0.55,3653.3,3653.2,2.73729]
[1733202413641,0.55,3653.6,3653.2,0.07960008]
[1733202413949,0.55,3653.4,3653.3,2.73723]
[1733202414150,0.55,3653.4,3653.3,3.16932217]
[1733202414351,0.55,3653.6,3653.3,3.16932217]
[1733202414679,0.55,3653.4,3653.3,3.16932217]
[1733202415173,0.9592333,3653.8,3653.4,2.73717]
[1733202415372,0.55,3653.6,3653.5,2.7371]
[1733202415679,0.80575122,3653.6,3653.5,3.13350564]
[1733202415970,0.80575122,3653.6,3653.5,3.90990564]
[1733202416175,0.55,3653.9,3653.6,2.73698]
[1733202416336,0.55,3653.7,3653.6,2.73698]
[1733202416538,0.80576712,3653.7,3653.6,2.73698]
[1733202417076,0.80576712,3653.7,3653.6,3.15526292]
[1733202418396,0.805705,3653.7,3653.6,3.15526292]
[1733202420196,0.55,3653.7,3653.6,3.15526292]
[1733202420366,0.55,3654.3,3653.8,2.73687]
[1733202420564,0.66484753,3654.2,3653.8,2.73687]
[1733202420825,0.55,3654.0,3653.8,0.8022]
[1733202421003,0.55,3654.0,3653.9,2.7368]
[1733202421187,0.80575169,3654.0,3653.9,2.7368]
[1733202421504,0.55,3653.9,3653.7,2.73693]
[1733202421803,0.55,3654.2,3653.7,2.73693]
[1733202421967,0.55,3653.7,3653.6,2.73702]
[1733202422167,0.55,3653.7,3653.6,3.399914]
[1733202422704,0.55,3654.0,3653.7,2.73692]
[1733202422889,0.25573016,3653.9,3653.7,2.73692]
[1733202423062,0.55,3653.8,3653.7,2.73692]
[1733202423267,0.80573695,3653.8,3653.7,2.73692]
[1733202423464,0.80573695,3653.8,3653.6,0.55824398]
[1733202423680,0.80573695,3653.7,3653.6,0.55824398]
[1733202424472,0.80573695,3653.7,3653.6,3.29526398]
[1733202424682,0.80573695,3653.7,3653.6,3.73664338]
[1733202426714,0.80573695,3653.7,3653.6,0.99962338]
[1733202426886,0.80573695,3653.7,3653.6,0.55824398]
[1733202427708,0.80573695,3653.7,3653.6,3.29526398]
[1733202427913,0.80575207,3653.7,3653.6,3.29526398]
[1733202429319,0.80575207,3653.7,3653.6,0.55824398]
[1733202429614,1.63305207,3653.7,3652.7,0.2736]
[1733202429785,0.80575207,3653.6,3652.9,2.7375]
[1733202429985,0.25575207,3653.5,3652.9,2.7375]
[1733202430198,0.55,3653.3,3652.9,2.7375]
[1733202430415,0.55,3653.3,3653.0,0.54447404]
[1733202430917,0.72865033,3653.3,3653.0,0.54447404]
[1733202431122,0.72865033,3653.3,3652.3,0.2736]
[1733202431123,1.3773,3653.1,3652.3,0.2736]
[1733202431272,0.25581903,3653.0,3652.2,2.73803]
[1733202431476,0.55,3652.7,3651.9,2.73829]
[1733202431713,0.55,3652.5,3652.0,2.73819]
[1733202431885,0.55,3652.3,3652.0,2.73819]
[1733202432077,1.3773,3652.3,3652.2,0.54962299]
[1733202432278,1.63283957,3652.3,3652.2,0.54962299]
[1733202432488,1.3773,3652.3,3652.2,0.54962299]
[1733202433192,1.63283957,3652.3,3652.2,0.54962299]
[1733202433520,1.3773,3652.3,3652.2,0.54962299]
[1733202433725,1.3773,3652.3,3651.5,0.7899]
[1733202433877,1.3773,3652.3,3651.8,2.73832]
[1733202434077,1.3773,3652.3,3651.8,2.73835]
[1733202434590,1.3773,3652.3,3651.9,2.73826]
[1733202434800,1.3773,3652.3,3652.1,0.53496126]
[1733202437322,0.55,3652.1,3651.6,2.73851]
[1733202437481,0.55,3652.1,3651.8,0.55129177]
[1733202438335,0.55,3652.2,3651.8,3.28966177]
[1733202442745,0.55,3652.2,3651.8,0.55129177]
[1733202443043,0.55,3652.0,3651.4,2.73867]
[1733202443206,0.55,3652.2,3651.4,2.73867]
[1733202443724,2.59127722,3652.2,3651.4,2.73867]
[1733202443931,2.59127722,3652.2,3651.5,0.55662418]
[1733202444250,2.59127722,3652.2,3651.6,2.73849]
[1733202444605,2.59127722,3652.2,3651.7,0.07875334]
[1733202447734,2.59127722,3652.2,3651.8,2.73836]
[1733202448068,0.55,3652.2,3651.9,2.81696749]
[1733202448387,2.04127722,3652.6,3652.0,2.73822]
[1733202448388,0.7745,3652.6,3652.0,2.73822]
[1733202448534,2.44883483,3653.0,3652.5,2.73785]
[1733202448535,0.7745,3652.9,3652.5,2.73785]
[1733202448723,1.05607772,3652.9,3652.5,2.73785]
[1733202448921,0.7745,3652.9,3652.6,2.81644934]
[1733202449953,2.04127722,3653.0,3652.6,0.07867934]
[1733202450156,0.55,3652.9,3652.8,2.73762]
[1733202450533,0.55,3652.9,3652.8,2.81605874]
[1733202450726,0.55,3653.1,3652.8,2.81605874]
[1733202451083,0.8094,3653.2,3653.0,2.73744]
[1733202451359,0.8094,3653.2,3653.1,0.07832505]
[1733202451721,2.04127722,3653.4,3653.0,2.73746]
[1733202451926,2.04127722,3653.4,3653.1,0.07832505]
[1733202452153,2.04127722,3653.4,3653.1,2.73739]
[1733202452455,0.55,3653.3,3653.2,0.07828716]
[1733202453357,0.55,3653.3,3652.9,0.8204]
[1733202453665,0.55,3653.5,3653.2,2.73732]
[1733202453969,0.55,3653.5,3653.3,0.07802217]
[1733202454523,0.55,3653.5,3653.3,2.73722]
[1733202454755,0.55,3653.7,3653.4,0.07798428]
[1733202455150,0.55,3653.7,3653.3,2.73722]
[1733202455351,0.55,3653.7,3653.5,0.07794639]
[1733202455555,0.55,3653.7,3653.4,0.07798428]
[1733202455789,0.55,3653.7,3653.6,0.07790851]
[1733202455997,0.55,3653.7,3653.5,0.07794639]
[1733202456181,0.55,3653.7,3653.6,0.07790851]
[1733202456364,0.55,3653.7,3653.5,0.8327]
[1733202456571,0.55,3654.0,3653.5,3.56977]
[1733202456969,0.55,3654.0,3653.6,2.81489851]
[1733202458255,0.55,3654.0,3653.6,0.07790851]
[1733202459262,0.55,3654.0,3653.6,0.63770954]
[1733202460158,0.55,3654.0,3653.6,0.78475049]
[1733202460494,0.55,3654.1,3653.8,2.73686]
[1733202460694,0.55,3654.1,3653.9,0.07698897]
[1733202462484,0.55,3654.1,3653.6,0.70684198]
[1733202462705,0.55,3654.1,3653.7,2.81400473]
[1733202462921,0.55,3654.1,3653.7,3.2493594]
[1733202463095,0.55,3654.1,3653.7,0.5124194]
[1733202463300,0.55,3654.1,3653.7,0.07706473]
[1733202468816,0.55,3654.1,3653.8,2.73684]
[1733202469193,0.55,3654.1,3653.9,0.07684211]
[1733202469518,0.8324,3654.7,3654.1,0.7598]
[1733202469740,0.25501001,3654.9,3654.2,0.07672404]
[1733202469901,0.25501001,3654.9,3654.2,2.81322404]
[1733202470095,0.25501001,3654.9,3654.2,3.17326269]
[1733202470435,2.87367722,3655.0,3654.2,0.43676269]
[1733202470589,0.25500407,3654.9,3654.2,0.43676269]
[1733202470790,0.55,3654.8,3654.2,0.43676269]
[1733202470988,0.25500407,3654.9,3654.2,0.43676269]
[1733202470989,0.80500401,3654.9,3654.2,0.43676269]
[1733202473326,0.80500401,3654.9,3654.2,3.17326269]
[1733202473535,0.55,3654.9,3654.2,3.17326269]
[1733202474305,0.80508639,3654.9,3654.2,3.17326269]
[1733202474508,0.55,3654.9,3654.2,3.17326269]
[1733202474701,0.80509302,3654.9,3654.2,3.17326269]
[1733202474898,0.55,3654.9,3654.2,3.17326269]
[1733202475332,0.80515041,3654.9,3654.2,3.17326269]
[1733202475537,0.80515041,3654.9,3654.3,0.39330627]
[1733202475727,0.40800641,3655.2,3654.3,3.12979627]
[1733202475728,1.49194647,3654.4,3654.3,3.12979627]
[1733202476409,0.55,3654.3,3654.1,0.7598]
[1733202476598,0.55,3654.3,3653.7,0.7961]
[1733202476937,0.55,3653.8,3653.7,3.53305]
[1733202478260,0.55,3654.1,3654.0,2.73672]
[1733202478475,0.55,3654.4,3654.3,2.7365]
[1733202478614,0.55,3654.4,3654.3,3.365602]
[1733202479140,0.94194647,3654.7,3654.4,0.8178]
[1733202479536,0.94194647,3654.7,3654.5,2.73628]
[1733202479920,0.94194647,3654.7,3654.6,2.73627]
[1733202480328,1.49194647,3654.7,3654.6,2.73627]
[1733202480527,1.49194647,3654.7,3654.6,3.1545872]
[1733202482973,1.49194647,3654.7,3654.6,3.70052769]
[1733202483189,0.55,3654.9,3654.6,4.50772769]
[1733202483789,0.807,3655.6,3655.0,2.73591]
[1733202483790,0.94194647,3655.1,3655.0,2.73591]
[1733202484084,1.49194647,3655.1,3655.0,3.009501]
[1733202484374,1.49194647,3655.1,3655.0,0.273591]
[1733202485088,0.55,3655.0,3654.8,2.73611]
[1733202485751,0.55,3655.0,3654.9,2.73605]
[1733202486254,0.55,3655.0,3654.6,1.77145769]
[1733202486450,1.49194647,3654.8,3654.7,2.7362]
[1733202487681,0.55,3654.7,3654.6,1.35314049]
[1733202488905,0.94194647,3654.7,3654.6,1.35314049]
[1733202489771,0.94194647,3654.7,3654.6,1.42860077]
[1733202490107,0.94194647,3654.7,3654.6,0.62140077]
[1733202490399,0.94194647,3654.7,3654.6,1.03296185]
[1733202491270,0.94194647,3654.7,3654.6,3.76923185]
[1733202493500,0.8079,3655.6,3654.6,1.83246185]
[1733202493706,1.49194647,3655.1,3654.6,1.83246185]
[1733202494063,0.94194647,3655.1,3654.8,2.73609]
[1733202494271,0.94194647,3655.1,3654.9,0.45685519]
[1733202494476,0.94194647,3655.1,3654.9,3.26806513]
[1733202494893,1.49194647,3655.1,3655.0,2.73597]
[1733202495102,1.49194647,3655.1,3654.9,0.53205513]
[1733202495268,1.49194647,3655.1,3655.0,0.07516209]
[1733202495464,1.49194647,3655.1,3654.8,2.7361]
[1733202495685,1.49194647,3655.1,3655.0,0.07516209]
[1733202495897,1.49194647,3655.1,3654.9,0.07519994]
[1733202496099,1.49194647,3655.1,3655.0,0.07516209]
[1733202496475,1.49194647,3655.1,3654.8,2.7361]
[1733202496676,1.49194647,3655.1,3655.0,0.07516209]
[1733202496863,1.49194647,3655.1,3654.9,0.48335399]
[1733202497066,1.49194647,3655.1,3655.0,0.07516209]
[1733202498383,1.74793647,3655.1,3655.0,0.07516209]
[1733202498902,1.49194647,3655.1,3655.0,0.07516209]
[1733202499409,1.74801009,3655.1,3655.0,0.07516209]
[1733202500898,1.49194647,3655.1,3655.0,0.07516209]
[1733202501093,1.74802682,3655.1,3655.0,0.07516209]
[1733202501312,1.49194647,3655.1,3655.0,0.07516209]
[1733202501612,1.74804899,3655.1,3655.0,0.07516209]
[1733202502474,1.74808141,3655.1,3655.0,0.07516209]
[1733202502705,1.74808482,3655.1,3655.0,0.07516209]
[1733202502908,0.55,3655.4,3655.0,0.07516209]
[1733202503109,0.94194647,3655.1,3654.9,2.73604]
[1733202503319,0.94194647,3655.1,3654.6,1.34544049]
[1733202503320,1.49194647,3655.1,3655.0,3.009574]
[1733202503485,1.74811777,3655.1,3655.0,3.08225376]
[1733202503695,1.74812019,3655.1,3655.0,0.34628376]
[1733202504993,1.74812019,3655.1,3655.0,0.07267976]
[1733202505200,1.19812019,3655.1,3655.0,0.07267976]
[1733202505403,2.53362019,3655.1,3654.6,1.34544049]
[1733202505614,0.94194647,3654.8,3654.6,1.34544049]
[1733202505777,0.94194647,3654.8,3654.6,0.54594049]
[1733202506531,0.25630556,3654.7,3654.6,0.54594049]
[1733202508299,0.25630556,3654.7,3654.3,2.73648]
[1733202508492,0.25630556,3654.6,3654.3,3.391198]
[1733202508792,0.94194647,3654.8,3654.3,3.391198]
[1733202509014,0.25633518,3654.7,3654.3,3.391198]
[1733202509196,0.94194647,3654.8,3654.3,3.391198]
[1733202509384,0.25632838,3654.7,3654.4,0.3391198]
[1733202509582,0.94194647,3654.8,3654.4,0.3391198]
[1733202509583,0.25632838,3654.6,3654.4,0.3391198]
[1733202509786,0.94194647,3654.8,3654.4,0.3391198]
[1733202509986,0.25633558,3654.7,3654.4,0.3391198]
[1733202510185,0.25633558,3654.6,3654.5,0.54243319]
[1733202511018,0.94194647,3654.8,3654.5,0.54243319]
[1733202511237,1.35207189,3655.0,3654.5,4.53852829]
[1733202511440,0.25633868,3654.9,3654.5,4.53852829]